Workbook

Sheet интернат гимн
A1: Согласовано | O1: Утверждено
O2: ООО "КРЕПЫШ"
O3: _______________________Ефремов В.Ю.
A5: Меню для организации питания детей в возрасте с 7-11 лет, проживающих в интернате Мензелинского муниципального района на 2 полугодие 2021-2022 учебный год.
A7: 1 день, 1 неделя
A8: № рецептуры | B8: Прием пищи, наименование блюда | C8: Масса | D8: Пищевые вещества | G8: Энергетическая ценность | H8: Витамины | M8: Минеральные вещества
D9: Белки | E9: Жиры | F9: Углеводы | H9: B1 | I9: B2 | J9: A | K9: D | L9: C | M9: Na | N9: K | O9: Ca | P9: Mg | Q9: P | R9: Fe | S9: I | T9: Se | U9: F
C10: г | D10: г | E10: г | F10: г | G10: ккал | H10: мг | I10: мг | J10: мкг рет.экв | K10: мкг | L10: мг | M10: мг | N10: мг | O10: мг | P10: мг | Q10: мг | R10: мг | S10: мкг | T10: мкг | U10: мкг
B11: Завтрак
A12: 54-1о-2020 | B12: Омлет натуральный | C12: 150 | D12: 12.68 | E12: 17.95 | F12: 3.25 | G12: 225.2 | H12: 0.07 | I12: 0.4 | J12: 182.66 | K12: 2.18 | L12: 0 | M12: 264 | N12: 180 | O12: 110 | P12: 17 | Q12: 202 | R12: 2.1 | S12: 43.65 | T12: 26 | U12: 62.62
A13: 54-23гн-2020 | B13: Кофейный напиток с молоком | C13: 200 | D13: 3.9 | E13: 2.9 | F13: 11.2 | G13: 86 | H13: 0.03 | I13: 0.13 | J13: 13.29 | K13: 0 | L13: 0.52 | M13: 38.55 | N13: 183.98 | O13: 148.32 | P13: 30.67 | Q13: 106.79 | R13: 1.06 | S13: 9 | T13: 1.76 | U13: 20
A14: 53-19з-2020 | B14: Масло сливочное порциями | C14: 15 | D14: 0.12 | E14: 10.88 | F14: 0.2 | G14: 99.1 | H14: 0 | I14: 0.01 | J14: 40.5 | K14: 0.2 | L14: 0 | M14: 2 | N14: 4 | O14: 3 | P14: 0 | Q14: 4 | R14: 0 | S14: 0 | T14: 0.1 | U14: 0.42
A15: Пром. | B15: Хлеб пшеничный | C15: 40 | D15: 2.3 | E15: 0.2 | F15: 14.8 | G15: 70.3 | H15: 0.03 | I15: 0.01 | J15: 0 | K15: 0 | L15: 0 | M15: 149.7 | N15: 27.9 | O15: 6 | P15: 4.2 | Q15: 19.5 | R15: 0.33 | S15: 0.96 | T15: 1.8 | U15: 4.35
A16: Пром. | B16: Апельсин | C16: 100 | D16: 0.9 | E16: 0.2 | F16: 8.1 | G16: 37.8 | H16: 0.04 | I16: 0.03 | J16: 8 | K16: 0 | L16: 60 | M16: 13 | N16: 197 | O16: 34 | P16: 13 | Q16: 23 | R16: 0.3 | S16: 2 | T16: 0.5 | U16: 17
B17: Итого за Завтрак | C17: =C12+C13+C15+C14+C16 -> 505 | D17: =D12+D13+D15+D14+D16 -> 19.9 | E17: 32.13 | F17: 37.55 | G17: 518.4 | H17: 0.17 | I17: 0.58 | J17: 244.45 | K17: 2.38 | L17: 60.52 | M17: 467.25 | N17: 592.88 | O17: 301.32 | P17: 64.87 | Q17: 355.29 | R17: 3.79 | S17: 55.61 | T17: 30.16 | U17: 104.39
B18: Обед
A19: ном.рец №41 | B19: Салат из отварной моркови с яблоками с растительным маслом | C19: 60 | D19: 0.6 | E19: 5.9 | F19: 4.6 | G19: 74.7 | H19: 0 | I19: 0 | J19: 0.7 | K19: 0 | L19: 1.4 | M19: 0 | N19: 0 | O19: 19.1 | P19: 13.6 | Q19: 19.6 | R19: 0.8 | S19: 0 | T19: 0 | U19: 0
A20: 54-7с-2020 | B20: Суп картофельный с макаронными изделиями | C20: 200 | D20: 5.2 | E20: 2.8 | F20: 18.5 | G20: 119.6 | H20: 0.09 | I20: 0.05 | J20: 97.51 | K20: 0 | L20: 6.89 | M20: 93.01 | N20: 410.42 | O20: 13.73 | P20: 20.84 | Q20: 54.56 | R20: 0.86 | S20: 16.76 | T20: 0.23 | U20: 32.72
A21: 54-4г-2020 | B21: Каша гречневая рассыпчатая | C21: 150 | D21: 8.2 | E21: 6.3 | F21: 35.9 | G21: 233.7 | H21: 0.21 | I21: 0.12 | J21: 19.19 | K21: 0.09 | L21: 0 | M21: 149.45 | N21: 219.36 | O21: 46.62 | P21: 120.16 | Q21: 180.99 | R21: 4.05 | S21: 22.28 | T21: 3.52 | U21: 16.06
A22: ном.рец №174 | B22: Тефтели мясные из говядины, полуфабрикат в соусе | C22: 75/30 | D22: 10.81 | E22: 10.4 | F22: 8.42 | G22: 168.9 | H22: 0 | I22: 0 | J22: 38.45 | K22: 0.01 | L22: 1.79 | M22: 3 | N22: 43 | O22: 45.75 | P22: 35.13 | Q22: 109 | R22: 1.6 | S22: 0 | T22: 0 | U22: 0
A23: 54-4гн-2020 | B23: Чай с молоком и сахаром | C23: 200 | D23: 1.6 | E23: 1.1 | F23: 8.6 | G23: 50.9 | H23: 0.01 | I23: 0.07 | J23: 6.9 | K23: 0 | L23: 0.3 | M23: 19.68 | N23: 81.35 | O23: 103.48 | P23: 9.92 | Q23: 46.33 | R23: 0.78 | S23: 4.5 | T23: 0.88 | U23: 10
A24: Пром. | B24: Хлеб пшеничный | C24: 30 | D24: 2.3 | E24: 0.2 | F24: 14.8 | G24: 70.3 | H24: 0.03 | I24: 0.01 | J24: 0 | K24: 0 | L24: 0 | M24: 149.7 | N24: 27.9 | O24: 6 | P24: 4.2 | Q24: 19.5 | R24: 0.33 | S24: 0.96 | T24: 1.8 | U24: 4.35
A25: Пром. | B25: Хлеб ржаной | C25: 20 | D25: 1.3 | E25: 0.2 | F25: 6.7 | G25: 34.2 | H25: 0.04 | I25: 0.02 | J25: 0 | K25: 0 | L25: 0 | M25: 122 | N25: 49 | O25: 7 | P25: 9.4 | Q25: 31.6 | R25: 0.78 | S25: 0 | T25: 6.18 | U25: 0
B26: Итого за Обед | C26: 765 | D26: =D19+D20+D21+D22+D23+D24+D25 -> 30.01 | E26: =E19+E20+E21+E22+E23+E24+E25 -> 26.9 | F26: 97.52 | G26: =G19+G20+G21+G22+G23+G24+G25 -> 752.3 | H26: 0.38 | I26: 0.27 | J26: 162.75 | K26: 0.1 | L26: 10.38 | M26: 536.84 | N26: 831.03 | O26: 241.68 | P26: 213.25 | Q26: 461.58 | R26: 9.2 | S26: 44.5 | T26: 12.61 | U26: 63.13
B27: Полдник
A28: Пром. | B28: Сок персиковый | C28: 200 | D28: 0.6 | E28: 0 | F28: 33 | G28: 134.4 | H28: 0.03 | I28: 0.06 | J28: 60 | K28: 0 | L28: 5 | M28: 9 | N28: 252 | O28: 9 | P28: 21 | Q28: 26 | R28: 0.3 | S28: 0 | T28: 0 | U28: 0
A29: Пром. | B29: Пряник | C29: 30 | D29: 1.8 | E29: 1.4 | F29: 22.5 | G29: 109.8 | H29: 0.02 | I29: 0.01 | J29: 0 | K29: 0 | L29: 0 | M29: 0.6 | N29: 21.3 | O29: 3.3 | P29: 2.7 | Q29: 15 | R29: 0.24 | S29: 0 | T29: 0 | U29: 0
B30: Итого за Полдник | C30: =C28+C29 -> 230 | D30: =D28+D29 -> 2.4 | E30: 1.4 | F30: 55.5 | G30: 244.2 | H30: 0.05 | I30: 0.07 | J30: 60 | K30: 0 | L30: 5 | M30: 9.6 | N30: 273.3 | O30: 12.3 | P30: 23.7 | Q30: 41 | R30: 0.54 | S30: 0 | T30: 0 | U30: 0
B31: Ужин
A32: 54-1г-2020 | B32: Макароны отварные | C32: 150 | D32: 5.3 | E32: 4.9 | F32: 32.8 | G32: 196.8 | H32: 0.06 | I32: 0.02 | J32: 18.36 | K32: 0.09 | L32: 0 | M32: 149.04 | N32: 53.8 | O32: 105.83 | P32: 7.19 | Q32: 40.7 | R32: 0.73 | S32: 20.77 | T32: 0.06 | U32: 11.92
A33: ном.рец №608 | B33: Котлета мясная Любительская, полуфабрикат в соусе | C33: 65/35 | D33: 10.04 | E33: 12.79 | F33: 8.12 | G33: 187.9 | H33: 0 | I33: 0 | J33: 38.45 | K33: 0.01 | L33: 1.15 | M33: 3 | N33: 43 | O33: 45.75 | P33: 35.13 | Q33: 173.38 | R33: 1.6 | S33: 0 | T33: 0 | U33: 0
A34: 54-1хн-2020 | B34: Компот из смеси сухофруктов | C34: 200 | D34: 0.5 | E34: 0 | F34: 19.8 | G34: 81 | H34: 0 | I34: 0 | J34: 15 | K34: 0 | L34: 0.02 | M34: 0.05 | N34: 0.17 | O34: 108.08 | P34: 2.11 | Q34: 4.31 | R34: 0.08 | S34: 0 | T34: 0 | U34: 0
A35: Пром. | B35: Хлеб пшеничный | C35: 30 | D35: 2.3 | E35: 0.2 | F35: 14.8 | G35: 70.3 | H35: 0.03 | I35: 0.01 | J35: 0 | K35: 0 | L35: 0 | M35: 149.7 | N35: 27.9 | O35: 6 | P35: 4.2 | Q35: 19.5 | R35: 0.33 | S35: 0.96 | T35: 1.8 | U35: 4.35
B36: Итого за Ужин | C36: 760 | D36: =D32+D33+D34+D35+D16+D38 -> 24.84 | E36: =E32+E33+E34+E35+E16+E38 -> 23.09 | F36: =F32+F33+F34+F35+F16+F38 -> 92.02 | G36: =G32+G33+G34+G35+G16+G38 -> 675.6 | H36: =H32+H33+H34+H35+H16+H38 -> 0.16 | I36: =I32+I33+I34+I35+I16+I38 -> 0.27 | J36: =J32+J33+J34+J35+J16+J38 -> 106.21 | K36: =K32+K33+K34+K35+K16+K38 -> 0.1 | L36: =L32+L33+L34+L35+L16+L38 -> 61.17 | M36: =M32+M33+M34+M35+M16+M38 -> 390.79 | N36: =N32+N33+N34+N35+N16+N38 -> 563.87 | O36: =O32+O33+O34+O35+O16+O38 -> 517.66 | P36: =P32+P33+P34+P35+P16+P38 -> 85.63 | Q36: =Q32+Q33+Q34+Q35+Q16+Q38 -> 420.89 | R36: =R32+R33+R34+R35+R16+R38 -> 3.24 | S36: =S32+S33+S34+S35+S16+S38 -> 41.73 | T36: =T32+T33+T34+T35+T16+T38 -> 4.16 | U36: =U32+U33+U34+U35+U16+U38 -> 73.27
B37: Ужин 2
A38: Пром. | B38: Ряженка 2.5% | C38: 200 | D38: 5.8 | E38: 5 | F38: 8.4 | G38: 101.8 | H38: 0.03 | I38: 0.21 | J38: 26.4 | K38: 0 | L38: 0 | M38: 76 | N38: 242 | O38: 218 | P38: 24 | Q38: 160 | R38: 0.2 | S38: 18 | T38: 1.8 | U38: 40
B39: Итого за ужин 2 | C39: =C38 -> 200 | D39: =D38 -> 5.8 | E39: 5 | F39: 8.4 | G39: 101.8 | H39: 0.03 | I39: 0.21 | J39: 26.4 | K39: 0 | L39: 0 | M39: 76 | N39: 242 | O39: 218 | P39: 24 | Q39: 160 | R39: 0.2 | S39: 18 | T39: 1.8 | U39: 40
B40: Итого за день | C40: =C17+C26+C30+C36+C39 -> 2460 | D40: =D17+D26+D30+D36+D39 -> 82.95 | E40: 88.52 | F40: 290.99 | G40: 2292.3 | H40: 0.79 | I40: 1.4 | J40: 599.81 | K40: 2.58 | L40: 137.07 | M40: 1480.48 | N40: 2503.08 | O40: 1290.96 | P40: 411.45 | Q40: 1438.76 | R40: 16.97 | S40: 159.84 | T40: 48.73 | U40: 280.79
A42: 2 день, 1 неделя
A43: № рецептуры | B43: Прием пищи, наименование блюда | C43: Масса | D43: Пищевые вещества | G43: Энергетическая ценность | H43: Витамины | M43: Минеральные вещества
D44: Белки | E44: Жиры | F44: Углеводы | H44: B1 | I44: B2 | J44: A | K44: D | L44: C | M44: Na | N44: K | O44: Ca | P44: Mg | Q44: P | R44: Fe | S44: I | T44: Se | U44: F
C45: г | D45: г | E45: г | F45: г | G45: ккал | H45: мг | I45: мг | J45: мкг рет.экв | K45: мкг | L45: мг | M45: мг | N45: мг | O45: мг | P45: мг | Q45: мг | R45: мг | S45: мкг | T45: мкг | U45: мкг
B46: Завтрак
A47: 54-1з-2020 | B47: Сыр твердых сортов в нарезке | C47: 15 | D47: 3.48 | E47: 4.42 | F47: 0 | G47: 53.7 | H47: 0 | I47: 0.04 | J47: 23.4 | K47: 0.14 | L47: 0.04 | M47: 92.34 | N47: 10.96 | O47: 116.16 | P47: 4.57 | Q47: 65.25 | R47: 0.13 | S47: 0 | T47: 1.9 | U47: 0
A48: 54-22к-2020 | B48: Каша жидкая молочная овсяная | C48: 200 | D48: 6.82 | E48: 7.44 | F48: 24.61 | G48: 192.6 | H48: 0.14 | I48: 0.17 | J48: 29.08 | K48: 0.07 | L48: 1 | M48: 348 | N48: 237 | O48: 164 | P48: 45 | Q48: 188 | R48: 1.1 | S48: 52.01 | T48: 9.9 | U48: 49.61
A49: 54-2гн-2020 | B49: Чай с сахаром | C49: 200 | D49: 0.2 | E49: 0 | F49: 6.4 | G49: 26.8 | H49: 0 | I49: 0.01 | J49: 0.3 | K49: 0 | L49: 0.04 | M49: 0.68 | N49: 20.76 | O49: 66.08 | P49: 3.83 | Q49: 7.18 | R49: 0.73 | S49: 0 | T49: 0 | U49: 0
A50: Пром. | B50: Хлеб пшеничный | C50: 30 | D50: 2.3 | E50: 0.2 | F50: 14.8 | G50: 70.3 | H50: 0.03 | I50: 0.01 | J50: 0 | K50: 0 | L50: 0 | M50: 149.7 | N50: 27.9 | O50: 6 | P50: 4.2 | Q50: 19.5 | R50: 0.33 | S50: 0.96 | T50: 1.8 | U50: 4.35
A51: Пром. | B51: Хлеб ржаной | C51: 20 | D51: 1.3 | E51: 0.2 | F51: 6.7 | G51: 34.2 | H51: 0.04 | I51: 0.02 | J51: 0 | K51: 0 | L51: 0 | M51: 122 | N51: 49 | O51: 7 | P51: 9.4 | Q51: 31.6 | R51: 0.78 | S51: 0 | T51: 6.18 | U51: 0
A52: 54-6о-2020 | B52: Яйцо вареное 1 шт | C52: 40 | D52: 4.78 | E52: 4.05 | F52: 0.25 | G52: 56.6 | H52: 0.02 | I52: 0.14 | J52: 62.4 | K52: 0.88 | L52: 0 | M52: 40.74 | N52: 46.48 | O52: 19.36 | P52: 4.18 | Q52: 66.82 | R52: 0.87 | S52: 8 | T52: 10.8 | U52: 22
B53: Итого за Завтрак | C53: =C47+C48+C49+C50+C51+C52 -> 505 | D53: =D47+D48+D49+D50+D51+D52 -> 18.88 | E53: 16.31 | F53: 52.76 | G53: 434.2 | H53: 0.23 | I53: 0.39 | J53: 115.18 | K53: 1.09 | L53: 1.08 | M53: 753.46 | N53: 392.1 | O53: 378.6 | P53: 71.18 | Q53: 378.35 | R53: 3.94 | S53: 60.97 | T53: 30.58 | U53: 75.96
B54: Обед
A55: 54-16з-2020 | B55: Винегрет с растительным маслом | C55: 60 | D55: 0.7 | E55: 5.4 | F55: 4 | G55: 67.1 | H55: 0.02 | I55: 0.02 | J55: 72.89 | K55: 0 | L55: 2.26 | M55: 200.99 | N55: 127.85 | O55: 12.1 | P55: 9.66 | Q55: 21.4 | R55: 0.41 | S55: 7.86 | T55: 0.13 | U55: 11.85
A56: 54-3с-2020 | B56: Рассольник Ленинградский | C56: 200 | D56: 4.8 | E56: 5.8 | F56: 13.6 | G56: 125.5 | H56: 0.06 | I56: 0.05 | J56: 103.93 | K56: 0 | L56: 5.54 | M56: 196.79 | N56: 334.95 | O56: 21.08 | P56: 19.71 | Q56: 51.39 | R56: 0.71 | S56: 16.6 | T56: 0.75 | U56: 28.28
A57: 54-22м-2020 | B57: Рагу из курицы | C57: 140/60 | D57: 21 | E57: 7 | F57: 17.5 | G57: 217.3 | H57: 0.14 | I57: 0.11 | J57: 259.68 | K57: 0 | L57: 11.25 | M57: 281.38 | N57: 738.57 | O57: 32.19 | P57: 93.35 | Q57: 192.51 | R57: 2.13 | S57: 42.97 | T57: 17.04 | U57: 156.36
A58: 54-21гн-2020 | B58: Какао с молоком | C58: 200 | D58: 4.7 | E58: 3.5 | F58: 12.5 | G58: 100.4 | H58: 0.04 | I58: 0.16 | J58: 17.25 | K58: 0 | L58: 0.68 | M58: 49.95 | N58: 220.33 | O58: 167.68 | P58: 34.32 | Q58: 130.28 | R58: 1.09 | S58: 11.7 | T58: 2.29 | U58: 38.25
A59: Пром. | B59: Хлеб пшеничный | C59: 30 | D59: 2.3 | E59: 0.2 | F59: 14.8 | G59: 70.3 | H59: 0.03 | I59: 0.01 | J59: 0 | K59: 0 | L59: 0 | M59: 149.7 | N59: 27.9 | O59: 6 | P59: 4.2 | Q59: 19.5 | R59: 0.33 | S59: 0.96 | T59: 1.8 | U59: 4.35
A60: 54-10в-2020 | B60: Булочка ванильная | C60: 60 | D60: 3.9 | E60: 3.37 | F60: 25.39 | G60: 176.9 | H60: 0.04 | I60: 0.02 | J60: 15.93 | K60: 0.12 | L60: 0 | M60: 200 | N60: 41 | O60: 14 | P60: 5 | Q60: 33 | R60: 0.5 | S60: 27.81 | T60: 2.6 | U60: 9.19
B61: Итого за Обед | C61: 750 | D61: =D55+D56+D57+D58+D59+D51+D60 -> 38.7 | E61: =E55+E56+E57+E58+E59+E51+E60 -> 25.47 | F61: =F55+F56+F57+F58+F59+F51+F60 -> 94.49 | G61: =G55+G56+G57+G58+G59+G51+G60 -> 791.7 | H61: =H55+H56+H57+H58+H59+H51+H60 -> 0.37 | I61: =I55+I56+I57+I58+I59+I51+I60 -> 0.39 | J61: =J55+J56+J57+J58+J59+J51+J60 -> 469.68 | K61: =K55+K56+K57+K58+K59+K51+K60 -> 0.12 | L61: =L55+L56+L57+L58+L59+L51+L60 -> 19.73 | M61: =M55+M56+M57+M58+M59+M51+M60 -> 1200.81 | N61: =N55+N56+N57+N58+N59+N51+N60 -> 1539.6 | O61: =O55+O56+O57+O58+O59+O51+O60 -> 260.05 | P61: =P55+P56+P57+P58+P59+P51+P60 -> 175.64 | Q61: =Q55+Q56+Q57+Q58+Q59+Q51+Q60 -> 479.68 | R61: =R55+R56+R57+R58+R59+R51+R60 -> 5.95 | S61: =S55+S56+S57+S58+S59+S51+S60 -> 107.9 | T61: =T55+T56+T57+T58+T59+T51+T60 -> 30.79 | U61: =U55+U56+U57+U58+U59+U51+U60 -> 248.28
B62: Полдник
A63: Пром. | B63: Вафли с фруктовыми начинками | C63: 30 | D63: 0.84 | E63: 0.99 | F63: 23.19 | G63: 105 | H63: 0.01 | I63: 0.01 | J63: 0.54 | K63: 0 | L63: 0 | M63: 11.17 | N63: 34.86 | O63: 4.22 | P63: 2.61 | Q63: 9.4 | R63: 0.39 | S63: 0 | T63: 0 | U63: 0
A64: Пром. | B64: Сок яблочный | C64: 200 | D64: 1 | E64: 0.2 | F64: 20.2 | G64: 86.6 | H64: 0.02 | I64: 0.02 | J64: 0 | K64: 0 | L64: 4 | M64: 12 | N64: 240 | O64: 14 | P64: 8 | Q64: 14 | R64: 2.8 | S64: 0 | T64: 0 | U64: 0
B65: Итого за Полдник | C65: =C63+C64 -> 230 | D65: =D63+D64 -> 1.84 | E65: 1.19 | F65: 43.39 | G65: 191.6 | H65: 0.03 | I65: 0.03 | J65: 0.54 | K65: 0 | L65: 4 | M65: 23.17 | N65: 274.86 | O65: 18.22 | P65: 10.61 | Q65: 23.4 | R65: 3.19 | S65: 0 | T65: 0 | U65: 0
B66: Ужин
A67: 54-6т-2020 | B67: Сырники | C67: 160 | D67: 31.4 | E67: 9.2 | F67: 26.3 | G67: 313.2 | H67: 0.07 | I67: 0.33 | J67: 46.02 | K67: 0.15 | L67: 0.3 | M67: 146.88 | N67: 169.42 | O67: 219.92 | P67: 33.17 | Q67: 304.73 | R67: 0.87 | S67: 27.47 | T67: 40.06 | U67: 54.51
A68: 54-33хн-2020 | B68: Напиток апельсиновый | C68: 200 | D68: 0.2 | E68: 0 | F68: 8 | G68: 33 | H68: 0.01 | I68: 0.01 | J68: 1.06 | K68: 0 | L68: 5.28 | M68: 2.23 | N68: 36.15 | O68: 74.47 | P68: 2.49 | Q68: 4.4 | R68: 0.08 | S68: 0.44 | T68: 0.1 | U68: 3.74
A69: Пром. | B69: Хлеб пшеничный | C69: 30 | D69: 2.3 | E69: 0.2 | F69: 14.8 | G69: 70.3 | H69: 0.03 | I69: 0.01 | J69: 0 | K69: 0 | L69: 0 | M69: 149.7 | N69: 27.9 | O69: 6 | P69: 4.2 | Q69: 19.5 | R69: 0.33 | S69: 0.96 | T69: 1.8 | U69: 4.35
A70: 451 СПБ 2008 | B70: Пирожок печеный с картошкой | C70: 100 | D70: 1.6 | E70: 0.2 | F70: 10.3 | G70: 49.6 | H70: 0.03 | I70: 0.01 | J70: 0 | K70: 0 | L70: 0 | M70: 90.75 | N70: 27.75 | O70: 4.5 | P70: 6.9 | Q70: 18.15 | R70: 0.44 | S70: 0 | T70: 0 | U70: 0
B71: Итого за Ужин | C71: =C67+C68+C69+C70 -> 490 | D71: =D67+D68+D69+D70 -> 35.5 | E71: 9.6 | F71: 59.4 | G71: 466.1 | H71: 0.14 | I71: 0.36 | J71: 47.08 | K71: 0.15 | L71: 5.58 | M71: 389.56 | N71: 261.22 | O71: 304.89 | P71: 46.76 | Q71: 346.78 | R71: 1.72 | S71: 28.87 | T71: 41.96 | U71: 62.6
B72: Ужин 2
A73: Пром. | B73: Кефир 3.2% | C73: 200 | D73: 5.8 | E73: 5 | F73: 8 | G73: 100.2 | H73: 0.06 | I73: 0.27 | J73: 26.4 | K73: 0 | L73: 1 | M73: 76 | N73: 242 | O73: 211 | P73: 24 | Q73: 157 | R73: 0.2 | S73: 18 | T73: 3.5 | U73: 40
B74: Итого за ужин 2 | C74: =C73 -> 200 | D74: =D73 -> 5.8 | E74: 5 | F74: 8 | G74: 100.2 | H74: 0.06 | I74: 0.27 | J74: 26.4 | K74: 0 | L74: 1 | M74: 76 | N74: 242 | O74: 211 | P74: 24 | Q74: 157 | R74: 0.2 | S74: 18 | T74: 3.5 | U74: =U73 -> 40
B75: Итого за день | C75: =C53+C61+C65+C71+C74 -> 2175 | D75: =D53+D61+D65+D71+D74 -> 100.72 | E75: 57.57 | F75: 258.04 | G75: 1983.8 | H75: 0.83 | I75: 1.44 | J75: 658.88 | K75: 1.36 | L75: 31.39 | M75: 2443 | N75: 2709.78 | O75: 1172.76 | P75: 328.19 | Q75: 1385.21 | R75: 15 | S75: 215.74 | T75: 106.83 | U75: 426.84
A77: 3 день, 1 неделя
A78: № рецептуры | B78: Прием пищи, наименование блюда | C78: Масса | D78: Пищевые вещества | G78: Энергетическая ценность | H78: Витамины | M78: Минеральные вещества
D79: Белки | E79: Жиры | F79: Углеводы | H79: B1 | I79: B2 | J79: A | K79: D | L79: C | M79: Na | N79: K | O79: Ca | P79: Mg | Q79: P | R79: Fe | S79: I | T79: Se | U79: F
C80: г | D80: г | E80: г | F80: г | G80: ккал | H80: мг | I80: мг | J80: мкг рет.экв | K80: мкг | L80: мг | M80: мг | N80: мг | O80: мг | P80: мг | Q80: мг | R80: мг | S80: мкг | T80: мкг | U80: мкг
B81: Завтрак
A82: 53-19з-2020 | B82: Масло сливочное порциями | C82: 15 | D82: 0.12 | E82: 10.88 | F82: 0.2 | G82: 99.1 | H82: 0 | I82: 0.01 | J82: 40.5 | K82: 0.2 | L82: 0 | M82: 2 | N82: 4 | O82: 3 | P82: 0 | Q82: 4 | R82: 0 | S82: 0 | T82: 0.1 | U82: 0.42
A83: 54-21к-2020 | B83: Каша вязкая молочная ячневая | C83: 150 | D83: 5.4 | E83: 7 | F83: 25.6 | G83: 186.8 | H83: 0.09 | I83: 0.13 | J83: 31.14 | K83: 0.1 | L83: 0.43 | M83: 256.67 | N83: 158.61 | O83: 127.09 | P83: 24.68 | Q83: 166.41 | R83: 0.63 | S83: 37.43 | T83: 12.57 | U83: 46.68
A84: 54-1хн-2020 | B84: Компот из смеси сухофруктов | C84: 200 | D84: 0.5 | E84: 0 | F84: 19.8 | G84: 81 | H84: 0 | I84: 0 | J84: 15 | K84: 0 | L84: 0.02 | M84: 0.05 | N84: 0.17 | O84: 108.08 | P84: 2.11 | Q84: 4.31 | R84: 0.08 | S84: 0 | T84: 0 | U84: 0
A85: Пром. | B85: Хлеб пшеничный | C85: 40 | D85: 2.3 | E85: 0.2 | F85: 14.8 | G85: 70.3 | H85: 0.03 | I85: 0.01 | J85: 0 | K85: 0 | L85: 0 | M85: 149.7 | N85: 27.9 | O85: 6 | P85: 4.2 | Q85: 19.5 | R85: 0.33 | S85: 0.96 | T85: 1.8 | U85: 4.35
A86: Пром. | B86: Апельсин | C86: 100 | D86: 0.9 | E86: 0.2 | F86: 8.1 | G86: 37.8 | H86: 0.04 | I86: 0.03 | J86: 8 | K86: 0 | L86: 60 | M86: 13 | N86: 197 | O86: 34 | P86: 13 | Q86: 23 | R86: 0.3 | S86: 2 | T86: 0.5 | U86: 17
B87: Итого за Завтрак | C87: =C82+C83+C84+C85+C86 -> 505 | D87: =D82+D83+D84+D85+D86 -> 9.22 | E87: 18.28 | F87: 68.5 | G87: 475 | H87: 0.16 | I87: 0.18 | J87: 94.64 | K87: 0.3 | L87: 60.45 | M87: 421.42 | N87: 387.68 | O87: 278.17 | P87: 43.99 | Q87: 217.22 | R87: 1.34 | S87: 40.39 | T87: 14.97 | U87: 68.45
B88: Обед
A89: ном.рец №40 | B89: Салат картофельный с морковью, зеленым горошком и растительным маслом | C89: 60 | D89: 1.6 | E89: 4.3 | F89: 5.9 | G89: 68.7 | H89: 0 | I89: 0 | J89: 0.4 | K89: 0 | L89: 3.9 | M89: 0 | N89: 0 | O89: 14.8 | P89: 13.9 | Q89: 37 | R89: 0.7 | S89: 0 | T89: 0 | U89: 0
A90: 54-6с-2020 | B90: Суп картофельный с клецками | C90: 200 | D90: 4.6 | E90: 3.3 | F90: 11.4 | G90: 93.6 | H90: 0.05 | I90: 0.04 | J90: 101.43 | K90: 0.05 | L90: 3.69 | M90: 58.01 | N90: 222.12 | O90: 13.28 | P90: 12.74 | Q90: 35.97 | R90: 0.54 | S90: 10.28 | T90: 0.94 | U90: 21.22
A91: 54-1г-2020 | B91: Макароны отварные | C91: 150 | D91: 5.3 | E91: 4.9 | F91: 32.8 | G91: 196.8 | H91: 0.06 | I91: 0.02 | J91: 18.36 | K91: 0.09 | L91: 0 | M91: 149.04 | N91: 53.8 | O91: 105.83 | P91: 7.19 | Q91: 40.7 | R91: 0.73 | S91: 20.77 | T91: 0.06 | U91: 11.92
A92: №243 | B92: Сосиски говяжьи отварные, п/ф (2 шт) | C92: 100 | D92: 13.2 | E92: 22.84 | F92: 1.8 | G92: 247.15 | H92: 0 | I92: 0 | J92: 0.08 | K92: 0.01 | L92: 0 | M92: 0 | N92: 0 | O92: 7.44 | P92: 15.51 | Q92: 137.39 | R92: 1.74 | S92: 0 | T92: 0 | U92: 0
A93: 54-3гн-2020 | B93: Чай с лимоном и сахаром | C93: 207 | D93: 0.2 | E93: 0.1 | F93: 6.6 | G93: 27.9 | H93: 0 | I93: 0.01 | J93: 0.38 | K93: 0 | L93: 1.16 | M93: 1.26 | N93: 30.23 | O93: 67 | P93: 4.56 | Q93: 8.52 | R93: 0.77 | S93: 0.01 | T93: 0.02 | U93: 0.7
A94: Пром. | B94: Хлеб ржаной | C94: 20 | D94: 1.3 | E94: 0.2 | F94: 6.7 | G94: 34.2 | H94: 0.04 | I94: 0.02 | J94: 0 | K94: 0 | L94: 0 | M94: 122 | N94: 49 | O94: 7 | P94: 9.4 | Q94: 31.6 | R94: 0.78 | S94: 0 | T94: 6.18 | U94: 0
A95: Пром. | B95: Хлеб пшеничный | C95: 30 | D95: 2.3 | E95: 0.2 | F95: 14.8 | G95: 70.3 | H95: 0.03 | I95: 0.01 | J95: 0 | K95: 0 | L95: 0 | M95: 149.7 | N95: 27.9 | O95: 6 | P95: 4.2 | Q95: 19.5 | R95: 0.33 | S95: 0.96 | T95: 1.8 | U95: 4.35
B96: Итого за Обед | C96: =C89+C90+C91+C92+C93+C94+C95 -> 767 | D96: =D89+D90+D91+D92+D93+D94+D95 -> 28.5 | E96: 35.84 | F96: 80 | G96: 738.65 | H96: 0.18 | I96: 0.1 | J96: 120.65 | K96: 0.15 | L96: 8.75 | M96: 480.01 | N96: 383.05 | O96: 221.35 | P96: 67.5 | Q96: 310.68 | R96: 5.59 | S96: 32.02 | T96: 9 | U96: 38.19
B97: Полдник
A98: Пром. | B98: Сок персиковый | C98: 200 | D98: 0.6 | E98: 0 | F98: 33 | G98: 134.4 | H98: 0.03 | I98: 0.06 | J98: 60 | K98: 0 | L98: 5 | M98: 9 | N98: 252 | O98: 9 | P98: 21 | Q98: 26 | R98: 0.3 | S98: 0 | T98: 0 | U98: 0
A99: Пром. | B99: Сушка простая | C99: 30 | D99: 3.27 | E99: 0.39 | F99: 20.64 | G99: 99.1 | H99: 0.05 | I99: 0.02 | J99: 0 | K99: 0 | L99: 0 | M99: 137.94 | N99: 46.06 | O99: 7.92 | P99: 12.01 | Q99: 31.58 | R99: 0.76 | S99: 0 | T99: 0 | U99: 0
B100: Итого за Полдник | C100: =C98+C99 -> 230 | D100: =D98+D99 -> 3.87 | E100: 0.39 | F100: 53.64 | G100: 233.5 | H100: 0.08 | I100: 0.08 | J100: 60 | K100: 0 | L100: 5 | M100: 146.94 | N100: 298.06 | O100: 16.92 | P100: 33.01 | Q100: 57.58 | R100: 1.06 | S100: 0 | T100: 0 | U100: 0
B101: Ужин
A102: 54-6г-2020 | B102: Рис отварной | C102: 180 | D102: 4.32 | E102: 5.78 | F102: 43.74 | G102: 244.2 | H102: 0.04 | I102: 0.03 | J102: 22.03 | K102: 0.11 | L102: 0 | M102: 184 | N102: 56 | O102: 129 | P102: 28 | Q102: 87 | R102: 0.6 | S102: 24.91 | T102: 8.7 | U102: 32.63
A103: 54-5м-2020 | B103: Котлета из курицы | C103: 100 | D103: 19.09 | E103: 4.32 | F103: 13.37 | G103: 168.7 | H103: 0.07 | I103: 0.07 | J103: 6.3 | K103: 0 | L103: 1 | M103: 211 | N103: 229 | O103: 32 | P103: 65 | Q103: 143 | R103: 1.3 | S103: 17.1 | T103: 18.5 | U103: 102.31
A104: Пром. | B104: Хлеб пшеничный | C104: 30 | D104: 2.3 | E104: 0.2 | F104: 14.8 | G104: 70.3 | H104: 0.03 | I104: 0.01 | J104: 0 | K104: 0 | L104: 0 | M104: 149.7 | N104: 27.9 | O104: 6 | P104: 4.2 | Q104: 19.5 | R104: 0.33 | S104: 0.96 | T104: 1.8 | U104: 4.35
A105: 54-4гн-2020 | B105: Чай с молоком и сахаром | C105: 200 | D105: 1.6 | E105: 1.1 | F105: 8.6 | G105: 50.9 | H105: 0.01 | I105: 0.07 | J105: 6.9 | K105: 0 | L105: 0.3 | M105: 19.68 | N105: 81.35 | O105: 103.48 | P105: 9.92 | Q105: 46.33 | R105: 0.78 | S105: 4.5 | T105: 0.88 | U105: 10
B106: Итого за Ужин | C106: =C102+C108+C104+C105 -> 610 | D106: =D102+D108+D104+D105 -> 14.02 | E106: =E102+E108+E104+E105 -> 12.08 | F106: =F102+F108+F104+F105 -> 75.54 | G106: =G102+G108+G104+G105 -> 467.2 | H106: =H102+H108+H104+H105 -> 0.11 | I106: =I102+I108+I104+I105 -> 0.32 | J106: =J102+J108+J104+J105 -> 55.33 | K106: =K102+K108+K104+K105 -> 0.11 | L106: =L102+L108+L104+L105 -> 0.3 | M106: =M102+M108+M104+M105 -> 429.38 | N106: =N102+N108+N104+N105 -> 407.25 | O106: =O102+O108+O104+O105 -> 456.48 | P106: =P102+P108+P104+P105 -> 66.12 | Q106: =Q102+Q108+Q104+Q105 -> 312.83 | R106: =R102+R108+R104+R105 -> 1.91 | S106: =S102+S108+S104+S105 -> 48.37 | T106: =T102+T108+T104+T105 -> 13.18 | U106: =U102+U108+U104+U105 -> 86.98
B107: Ужин 2
A108: Пром. | B108: Ряженка 2.5% | C108: 200 | D108: 5.8 | E108: 5 | F108: 8.4 | G108: 101.8 | H108: 0.03 | I108: 0.21 | J108: 26.4 | K108: 0 | L108: 0 | M108: 76 | N108: 242 | O108: 218 | P108: 24 | Q108: 160 | R108: 0.2 | S108: 18 | T108: 1.8 | U108: 40
B109: Итого за ужин 2 | C109: =C108 -> 200 | D109: =D108 -> 5.8 | E109: 5 | F109: 8.4 | G109: 101.8 | H109: 0.03 | I109: 0.21 | J109: 26.4 | K109: 0 | L109: 0 | M109: 76 | N109: 242 | O109: 218 | P109: 24 | Q109: 160 | R109: 0.2 | S109: 18 | T109: 1.8 | U109: 40
B110: Итого за день | C110: =C87+C96+C100+C106+C109 -> 2312 | D110: =D87+D96+D100+D106+D109 -> 61.41 | E110: 71.59 | F110: 286.08 | G110: 2016.15 | H110: 0.56 | I110: 0.89 | J110: 357.02 | K110: 0.56 | L110: 74.5 | M110: 1553.75 | N110: 1718.04 | O110: 1190.92 | P110: 234.62 | Q110: 1058.31 | R110: 10.1 | S110: 138.78 | T110: 38.95 | U110: 233.62
A112: 4 день, 1 неделя
A113: № рецептуры | B113: Прием пищи, наименование блюда | C113: Масса | D113: Пищевые вещества | G113: Энергетическая ценность | H113: Витамины | M113: Минеральные вещества
D114: Белки | E114: Жиры | F114: Углеводы | H114: B1 | I114: B2 | J114: A | K114: D | L114: C | M114: Na | N114: K | O114: Ca | P114: Mg | Q114: P | R114: Fe | S114: I | T114: Se | U114: F
C115: г | D115: г | E115: г | F115: г | G115: ккал | H115: мг | I115: мг | J115: мкг рет.экв | K115: мкг | L115: мг | M115: мг | N115: мг | O115: мг | P115: мг | Q115: мг | R115: мг | S115: мкг | T115: мкг | U115: мкг
B116: Завтрак
A117: 54-1з-2020 | B117: Сыр твердых сортов в нарезке | C117: 12 | D117: 2.8 | E117: 3.5 | F117: 0 | G117: 43 | H117: 0 | I117: 0.04 | J117: 31.2 | K117: 0.12 | L117: 0.08 | M117: 97.2 | N117: 10.56 | O117: 105.6 | P117: 4.2 | Q117: 60 | R117: 0.12 | S117: 0 | T117: 1.74 | U117: 0
A118: 54-13к-2020 | B118: Каша вязкая молочная пшеничная | C118: 150 | D118: 6.1 | E118: 6.9 | F118: 29 | G118: 202.7 | H118: 0.1 | I118: 0.13 | J118: 30.74 | K118: 0.1 | L118: 0.41 | M118: 256.57 | N118: 169.91 | O118: 113.68 | P118: 29.4 | Q118: 154.74 | R118: 1.64 | S118: 37.16 | T118: 24.8 | U118: 16.11
A119: 54-2гн-2020 | B119: Чай с сахаром | C119: 200 | D119: 0.2 | E119: 0 | F119: 6.4 | G119: 26.8 | H119: 0 | I119: 0.01 | J119: 0.3 | K119: 0 | L119: 0.04 | M119: 0.68 | N119: 20.76 | O119: 66.08 | P119: 3.83 | Q119: 7.18 | R119: 0.73 | S119: 0 | T119: 0 | U119: 0
A120: Пром. | B120: Хлеб пшеничный | C120: 40 | D120: 2.3 | E120: 0.2 | F120: 14.8 | G120: 70.3 | H120: 0.03 | I120: 0.01 | J120: 0 | K120: 0 | L120: 0 | M120: 149.7 | N120: 27.9 | O120: 6 | P120: 4.2 | Q120: 19.5 | R120: 0.33 | S120: 0.96 | T120: 1.8 | U120: 4.35
A121: Пром. | B121: Груша | C121: 100 | D121: 0.4 | E121: 0.3 | F121: 10.3 | G121: 45.5 | H121: 0.02 | I121: 0.03 | J121: 2 | K121: 0 | L121: 5 | M121: 14 | N121: 155 | O121: 19 | P121: 12 | Q121: 16 | R121: 2.3 | S121: 1 | T121: 0.1 | U121: 10
B122: Итого за Завтрак | C122: =C117+C118+C119+C120+C121 -> 502 | D122: =D117+D118+D119+D120+D121 -> 11.8 | E122: 10.9 | F122: 60.5 | G122: 388.3 | H122: 0.15 | I122: 0.22 | J122: 64.24 | K122: 0.22 | L122: 5.53 | M122: 518.15 | N122: 384.13 | O122: 310.36 | P122: 53.63 | Q122: 257.42 | R122: 5.12 | S122: 39.12 | T122: 28.44 | U122: 30.46
B123: Обед
A124: 54-13з-2020 | B124: Салат из свеклы отварной с растительным маслом | C124: 60 | D124: 0.8 | E124: 2.7 | F124: 4.6 | G124: 45.6 | H124: 0.01 | I124: 0.02 | J124: 0.68 | K124: 0 | L124: 2.28 | M124: 78.77 | N124: 136.27 | O124: 19.21 | P124: 10.95 | Q124: 21.51 | R124: 0.7 | S124: 11.99 | T124: 0.35 | U124: 11.4
A125: 54-11с-2020 | B125: Суп крестьянский с крупой (крупа рисовая) | C125: 200 | D125: 5 | E125: 5.8 | F125: 11.3 | G125: 116.9 | H125: 0.04 | I125: 0.04 | J125: 103.29 | K125: 0 | L125: 6.42 | M125: 96.69 | N125: 195.41 | O125: 25.55 | P125: 15.32 | Q125: 40.39 | R125: 0.5 | S125: 15.37 | T125: 1.25 | U125: 20.68
A126: 54-11г-2020 | B126: Картофельное пюре | C126: 150 | D126: 3.1 | E126: 5.3 | F126: 19.8 | G126: 139.4 | H126: 0.12 | I126: 0.11 | J126: 23.8 | K126: 0.09 | L126: 10.2 | M126: 161.78 | N126: 624.83 | O126: 39.49 | P126: 28.23 | Q126: 84.47 | R126: 1.03 | S126: 28.46 | T126: 0.78 | U126: 42.79
A127: ном.рец №608 | B127: Котлета мясная Любительская, полуфабрикат в соусе | C127: 65/35 | D127: 10.04 | E127: 12.79 | F127: 8.12 | G127: 187.9 | H127: 0 | I127: 0 | J127: 38.45 | K127: 0.01 | L127: 1.15 | M127: 3 | N127: 43 | O127: 45.75 | P127: 35.13 | Q127: 173.38 | R127: 1.6 | S127: 0 | T127: 0 | U127: 0
A128: 54-23гн-2020 | B128: Кофейный напиток с молоком | C128: 200 | D128: 3.9 | E128: 2.9 | F128: 11.2 | G128: 86 | H128: 0.03 | I128: 0.13 | J128: 13.29 | K128: 0 | L128: 0.52 | M128: 38.55 | N128: 183.98 | O128: 148.32 | P128: 30.67 | Q128: 106.79 | R128: 1.06 | S128: 9 | T128: 1.76 | U128: 20
A129: Пром. | B129: Хлеб пшеничный | C129: 30 | D129: 2.3 | E129: 0.2 | F129: 14.8 | G129: 70.3 | H129: 0.03 | I129: 0.01 | J129: 0 | K129: 0 | L129: 0 | M129: 149.7 | N129: 27.9 | O129: 6 | P129: 4.2 | Q129: 19.5 | R129: 0.33 | S129: 0.96 | T129: 1.8 | U129: 4.35
A130: Пром. | B130: Хлеб ржаной | C130: 20 | D130: 1.3 | E130: 0.2 | F130: 6.7 | G130: 34.2 | H130: 0.04 | I130: 0.02 | J130: 0 | K130: 0 | L130: 0 | M130: 122 | N130: 49 | O130: 7 | P130: 9.4 | Q130: 31.6 | R130: 0.78 | S130: 0 | T130: 6.18 | U130: 0
B131: Итого за Обед | C131: 760 | D131: =D124+D125+D126+D127+D128+D129+D130 -> 26.44 | E131: =E124+E125+E126+E127+E128+E129+E130 -> 29.89 | F131: 76.52 | G131: 680.3 | H131: 0.27 | I131: 0.33 | J131: 179.51 | K131: 0.1 | L131: 20.57 | M131: 650.49 | N131: 1260.39 | O131: 291.32 | P131: 133.9 | Q131: 477.64 | R131: 6 | S131: 65.78 | T131: 12.12 | U131: 99.22
B132: Полдник
A133: 54-10в-2020 | B133: Булочка ванильная | C133: 60 | D133: 4.7 | E133: 4 | F133: 30.5 | G133: 176.9 | H133: 0.06 | I133: 0.03 | J133: 19.12 | K133: 0.14 | L133: 0 | M133: 240.68 | N133: 50.54 | O133: 17.63 | P133: 6.52 | Q133: 40.93 | R133: 0.57 | S133: 33.36 | T133: 3.15 | U133: 11.03
A134: Пром. | B134: Сок яблочный | C134: 200 | D134: 1 | E134: 0.2 | F134: 20.2 | G134: 86.6 | H134: 0.02 | I134: 0.02 | J134: 0 | K134: 0 | L134: 4 | M134: 12 | N134: 240 | O134: 14 | P134: 8 | Q134: 14 | R134: 2.8 | S134: 0 | T134: 0 | U134: 0
B135: Итого за Полдник | C135: =C133+C134 -> 260 | D135: =D133+D134 -> 5.7 | E135: 4.2 | F135: 50.7 | G135: 263.5 | H135: 0.08 | I135: 0.05 | J135: 19.12 | K135: 0.14 | L135: 4 | M135: 252.68 | N135: 290.54 | O135: 31.63 | P135: 14.52 | Q135: 54.93 | R135: 3.37 | S135: 33.36 | T135: 3.15 | U135: 11.03
B136: Ужин
A137: 54-22м-2020 | B137: Рагу из курицы | C137: 160/60 | D137: 23.05 | E137: 7.74 | F137: 19.27 | G137: 239 | H137: 0.15 | I137: 0.12 | J137: 285.64 | K137: 0 | L137: 13 | M137: 310 | N137: 812 | O137: 34 | P137: 102 | Q137: 213 | R137: 2.3 | S137: 47.26 | T137: 18.7 | U137: 172
A138: 54-1гн-2020 | B138: Чай без сахара | C138: 200 | D138: 0.2 | E138: 0 | F138: 0.1 | G138: 1.4 | H138: 0 | I138: 0.01 | J138: 0.3 | K138: 0 | L138: 0.04 | M138: 0.62 | N138: 20.58 | O138: 65.96 | P138: 3.83 | Q138: 7.18 | R138: 0.71 | S138: 0 | T138: 0 | U138: 0
A139: 54-6о-2020 | B139: Яйцо вареное 1 шт | C139: 40 | D139: 4.78 | E139: 4.05 | F139: 0.25 | G139: 56.6 | H139: 0.02 | I139: 0.14 | J139: 62.4 | K139: 0.88 | L139: 0 | M139: 40.74 | N139: 46.48 | O139: 19.36 | P139: 4.18 | Q139: 66.82 | R139: 0.87 | S139: 8 | T139: 10.8 | U139: 22
A140: Пром. | B140: Хлеб пшеничный | C140: 30 | D140: 2.3 | E140: 0.2 | F140: 14.8 | G140: 70.3 | H140: 0.03 | I140: 0.01 | J140: 0 | K140: 0 | L140: 0 | M140: 149.7 | N140: 27.9 | O140: 6 | P140: 4.2 | Q140: 19.5 | R140: 0.33 | S140: 0.96 | T140: 1.8 | U140: 4.35
B141: Итого за Ужин | C141: 490 | D141: =D137+D138+D143+D140 -> 31.35 | E141: =E137+E138+E143+E140 -> 12.94 | F141: =F137+F138+F143+F140 -> 42.17 | G141: =G137+G138+G143+G140 -> 410.9 | H141: =H137+H138+H143+H140 -> 0.24 | I141: =I137+I138+I143+I140 -> 0.41 | J141: =J137+J138+J143+J140 -> 312.34 | K141: =K137+K138+K143+K140 -> 0 | L141: =L137+L138+L143+L140 -> 14.04 | M141: =M137+M138+M143+M140 -> 536.32 | N141: =N137+N138+N143+N140 -> 1102.48 | O141: =O137+O138+O143+O140 -> 316.96 | P141: =P137+P138+P143+P140 -> 134.03 | Q141: =Q137+Q138+Q143+Q140 -> 396.68 | R141: =R137+R138+R143+R140 -> 3.54 | S141: =S137+S138+S143+S140 -> 66.22 | T141: =T137+T138+T143+T140 -> 24 | U141: =U137+U138+U143+U140 -> 216.35
B142: Ужин 2
A143: Пром. | B143: Кефир 3.2% | C143: 200 | D143: 5.8 | E143: 5 | F143: 8 | G143: 100.2 | H143: 0.06 | I143: 0.27 | J143: 26.4 | K143: 0 | L143: 1 | M143: 76 | N143: 242 | O143: 211 | P143: 24 | Q143: 157 | R143: 0.2 | S143: 18 | T143: 3.5 | U143: 40
B144: Итого за ужин 2 | C144: =C143 -> 200 | D144: =D143 -> 5.8 | E144: 5 | F144: 8 | G144: 100.2 | H144: 0.06 | I144: 0.27 | J144: 26.4 | K144: 0 | L144: 1 | M144: 76 | N144: 242 | O144: 211 | P144: 24 | Q144: 157 | R144: 0.2 | S144: 18 | T144: 3.5 | U144: 40
B145: Итого за день | C145: =C122+C131+C135+C141+C144 -> 2212 | D145: =D122+D131+D135+D141+D144 -> 81.09 | E145: 62.93 | F145: 237.89 | G145: 1843.2 | H145: 0.8 | I145: 1.28 | J145: 601.61 | K145: 0.46 | L145: 45.14 | M145: 2033.64 | N145: 3279.54 | O145: 1161.27 | P145: 360.08 | Q145: 1343.67 | R145: 18.23 | S145: 222.48 | T145: 71.21 | U145: 397.06
A147: 5 день, 1 неделя
A148: № рецептуры | B148: Прием пищи, наименование блюда | C148: Масса | D148: Пищевые вещества | G148: Энергетическая ценность | H148: Витамины | M148: Минеральные вещества
D149: Белки | E149: Жиры | F149: Углеводы | H149: B1 | I149: B2 | J149: A | K149: D | L149: C | M149: Na | N149: K | O149: Ca | P149: Mg | Q149: P | R149: Fe | S149: I | T149: Se | U149: F
C150: г | D150: г | E150: г | F150: г | G150: ккал | H150: мг | I150: мг | J150: мкг рет.экв | K150: мкг | L150: мг | M150: мг | N150: мг | O150: мг | P150: мг | Q150: мг | R150: мг | S150: мкг | T150: мкг | U150: мкг
B151: Завтрак
A152: 53-19з-2020 | B152: Масло сливочное (порциями) | C152: 10 | D152: 0.08 | E152: 7.25 | F152: 0.13 | G152: 66.1 | H152: 0 | I152: 0.01 | J152: 27 | K152: 0.13 | L152: 0 | M152: 1.14 | N152: 2.49 | O152: 2.11 | P152: 0 | Q152: 2.61 | R152: 0.02 | S152: 0 | T152: 0.1 | U152: 0.3
A153: 54-16к-2020 | B153: Каша "Дружба" | C153: 160 | D153: 3.99 | E153: 4.72 | F153: 19.2 | G153: 135.1 | H153: 0.06 | I153: 0.1 | J153: 21.73 | K153: 0.05 | L153: 0 | M153: 268 | N153: 125 | O153: 110 | P153: 21 | Q153: 100 | R153: 0.4 | S153: 39.91 | T153: 3.2 | U153: 24.89
A154: 54-21гн-2020 | B154: Какао с молоком | C154: 200 | D154: 4.7 | E154: 3.5 | F154: 12.5 | G154: 100.4 | H154: 0.04 | I154: 0.16 | J154: 17.25 | K154: 0 | L154: 0.68 | M154: 49.95 | N154: 220.33 | O154: 167.68 | P154: 34.32 | Q154: 130.28 | R154: 1.09 | S154: 11.7 | T154: 2.29 | U154: 38.25
A155: Пром. | B155: Хлеб пшеничный | C155: 30 | D155: 2.3 | E155: 0.2 | F155: 14.8 | G155: 70.3 | H155: 0.03 | I155: 0.01 | J155: 0 | K155: 0 | L155: 0 | M155: 149.7 | N155: 27.9 | O155: 6 | P155: 4.2 | Q155: 19.5 | R155: 0.33 | S155: 0.96 | T155: 1.8 | U155: 4.35
A156: Пром. | B156: Банан | C156: 100 | D156: 1.5 | E156: 0.5 | F156: 21 | G156: 94.5 | H156: 0.04 | I156: 0.05 | J156: 20 | K156: 0 | L156: 10 | M156: 31 | N156: 348 | O156: 8 | P156: 42 | Q156: 28 | R156: 0.6 | S156: 0.05 | T156: 1 | U156: 2.2
B157: Итого за Завтрак | C157: =C152+C153+C154+C155+C156 -> 500 | D157: =D152+D153+D154+D155+D156 -> 12.57 | E157: 16.17 | F157: 67.63 | G157: 466.4 | H157: 0.17 | I157: 0.33 | J157: 85.98 | K157: 0.18 | L157: 10.68 | M157: 499.79 | N157: 723.72 | O157: 293.79 | P157: 101.52 | Q157: 280.39 | R157: 2.44 | S157: 52.62 | T157: 8.39 | U157: 69.99
B158: Обед
A159: ном.рец №41 | B159: Салат из отварной моркови с яблоками с растительным маслом | C159: 60 | D159: 0.6 | E159: 5.9 | F159: 4.6 | G159: 74.7 | H159: 0 | I159: 0 | J159: 0.7 | K159: 0 | L159: 1.4 | M159: 0 | N159: 0 | O159: 19.1 | P159: 13.6 | Q159: 19.6 | R159: 0.8 | S159: 0 | T159: 0 | U159: 0
A160: 54-8с-2020 | B160: Суп гороховый | C160: 200 | D160: 6.7 | E160: 4.6 | F160: 16.3 | G160: 133.1 | H160: 0.14 | I160: 0.05 | J160: 97.19 | K160: 0 | L160: 4.77 | M160: 95.82 | N160: 382.43 | O160: 26.94 | P160: 29 | Q160: 80.47 | R160: 1.48 | S160: 15.96 | T160: 2.01 | U160: 28.88
A161: 54-11м-2020 | B161: плов из говядины | C161: 160/40 | D161: 15.3 | E161: 14.7 | F161: 38.6 | G161: 348.2 | H161: 0.07 | I161: 0.12 | J161: 261.6 | K161: 0.1 | L161: 0.72 | M161: 276.68 | N161: 267.36 | O161: 116.58 | P161: 43.81 | Q161: 193.2 | R161: 2.21 | S161: 38.67 | T161: 7.35 | U161: 81.73
A162: 54-2хн-2020 | B162: компот из кураги | C162: 200 | D162: 1 | E162: 0.1 | F162: 15.6 | G162: 66.9 | H162: 0.01 | I162: 0.03 | J162: 69.96 | K162: 0 | L162: 0.32 | M162: 2.64 | N162: 285.2 | O162: 90.5 | P162: 18.27 | Q162: 25.4 | R162: 0.58 | S162: 0 | T162: 0 | U162: 0
A163: Пром. | B163: Хлеб пшеничный | C163: 30 | D163: 2.3 | E163: 0.2 | F163: 14.8 | G163: 70.3 | H163: 0.03 | I163: 0.01 | J163: 0 | K163: 0 | L163: 0 | M163: 149.7 | N163: 27.9 | O163: 6 | P163: 4.2 | Q163: 19.5 | R163: 0.33 | S163: 0.96 | T163: 1.8 | U163: 4.35
B164: Итого за Обед | C164: 690 | D164: =D159+D160+D161+D162+D163 -> 25.9 | E164: =E159+E160+E161+E162+E163 -> 25.5 | F164: 89.9 | G164: 693.2 | H164: 0.25 | I164: 0.21 | J164: 429.45 | K164: 0.1 | L164: 7.21 | M164: 524.84 | N164: 962.89 | O164: 259.12 | P164: 108.88 | Q164: 338.17 | R164: 5.4 | S164: 55.59 | T164: 11.16 | U164: 114.96
B165: Полдник
A166: Пром. | B166: Сок персиковый | C166: 200 | D166: 0.6 | E166: 0 | F166: 33 | G166: 134.4 | H166: 0.03 | I166: 0.06 | J166: 60 | K166: 0 | L166: 5 | M166: 9 | N166: 252 | O166: 9 | P166: 21 | Q166: 26 | R166: 0.3 | S166: 0 | T166: 0 | U166: 0
A167: Пром. | B167: Пряник | C167: 30 | D167: 1.8 | E167: 1.4 | F167: 22.5 | G167: 109.8 | H167: 0.02 | I167: 0.01 | J167: 0 | K167: 0 | L167: 0 | M167: 0.6 | N167: 21.3 | O167: 3.3 | P167: 2.7 | Q167: 15 | R167: 0.24 | S167: 0 | T167: 0 | U167: 0
B168: Итого за Полдник | C168: =C166+C167 -> 230 | D168: =D166+D167 -> 2.4 | E168: 1.4 | F168: 55.5 | G168: 244.2 | H168: 0.05 | I168: 0.07 | J168: 60 | K168: 0 | L168: 5 | M168: 9.6 | N168: 273.3 | O168: 12.3 | P168: 23.7 | Q168: 41 | R168: 0.54 | S168: 0 | T168: 0 | U168: 0
B169: Ужин
A170: 54-4г-2020 | B170: Каша гречневая рассыпчатая | C170: 150 | D170: 8.2 | E170: 6.3 | F170: 35.9 | G170: 233.7 | H170: 0.21 | I170: 0.12 | J170: 19.19 | K170: 0.09 | L170: 0 | M170: 149.45 | N170: 219.36 | O170: 46.62 | P170: 120.16 | Q170: 180.99 | R170: 4.05 | S170: 22.28 | T170: 3.52 | U170: 16.06
A171: 54-2м-2020 | B171: Гуляш из говядины | C171: 60/40 | D171: 13.76 | E171: 13.91 | F171: 3.9 | G171: 195.8 | H171: 0.04 | I171: 0.12 | J171: 25.46 | K171: 0.07 | L171: 1 | M171: 122 | N171: 322 | O171: 55 | P171: 23 | Q171: 166 | R171: 2.5 | S171: 17.06 | T171: 0.4 | U171: 62.71
A172: 54-3гн-2020 | B172: Чай с лимоном и сахаром | C172: 207 | D172: 0.2 | E172: 0.1 | F172: 6.6 | G172: 27.9 | H172: 0 | I172: 0.01 | J172: 0.38 | K172: 0 | L172: 1.16 | M172: 1.26 | N172: 30.23 | O172: 67 | P172: 4.56 | Q172: 8.52 | R172: 0.77 | S172: 0.01 | T172: 0.02 | U172: 0.7
A173: Пром. | B173: Хлеб пшеничный | C173: 30 | D173: 2.3 | E173: 0.2 | F173: 14.8 | G173: 70.3 | H173: 0.03 | I173: 0.01 | J173: 0 | K173: 0 | L173: 0 | M173: 149.7 | N173: 27.9 | O173: 6 | P173: 4.2 | Q173: 19.5 | R173: 0.33 | S173: 0.96 | T173: 1.8 | U173: 4.35
A174: Пром. | B174: Хлеб ржаной | C174: 20 | D174: 1.3 | E174: 0.2 | F174: 6.7 | G174: 34.2 | H174: 0.04 | I174: 0.02 | J174: 0 | K174: 0 | L174: 0 | M174: 122 | N174: 49 | O174: 7 | P174: 9.4 | Q174: 31.6 | R174: 0.78 | S174: 0 | T174: 6.18 | U174: 0
B175: Итого за Ужин | C175: 507 | D175: =D170+D171+D172+D173+D174 -> 25.76 | E175: =E170+E171+E172+E173+E174 -> 20.71 | F175: 67.9 | G175: 561.9 | H175: 0.32 | I175: 0.28 | J175: 45.03 | K175: 0.16 | L175: 2.16 | M175: 544.41 | N175: 648.49 | O175: 181.62 | P175: 161.32 | Q175: 406.61 | R175: 8.43 | S175: 40.31 | T175: 11.92 | U175: 83.82
B176: Ужин 2
A177: Пром. | B177: Ряженка 2.5% | C177: 200 | D177: 5.8 | E177: 5 | F177: 8.4 | G177: 101.8 | H177: 0.03 | I177: 0.21 | J177: 26.4 | K177: 0 | L177: 0 | M177: 76 | N177: 242 | O177: 218 | P177: 24 | Q177: 160 | R177: 0.2 | S177: 18 | T177: 1.8 | U177: 40
B178: Итого за ужин 2 | C178: =C177 -> 200 | D178: =D177 -> 5.8 | E178: 5 | F178: 8.4 | G178: 101.8 | H178: 0.03 | I178: 0.21 | J178: 26.4 | K178: 0 | L178: 0 | M178: 76 | N178: 242 | O178: 218 | P178: 24 | Q178: 160 | R178: 0.2 | S178: 18 | T178: 1.8 | U178: 40
B179: Итого за день | C179: =C157+C164+C168+C175+C178 -> 2127 | D179: =D157+D164+D168+D175+D178 -> 72.43 | E179: 68.78 | F179: 289.33 | G179: 2067.5 | H179: 0.82 | I179: 1.1 | J179: 646.86 | K179: 0.44 | L179: 25.05 | M179: 1654.64 | N179: 2850.4 | O179: 964.83 | P179: 419.42 | Q179: 1226.17 | R179: 17.01 | S179: 166.52 | T179: 33.27 | U179: 308.77
A181: 7 день, 1 неделя
A182: № рецептуры | B182: Прием пищи, наименование блюда | C182: Масса | D182: Пищевые вещества | G182: Энергетическая ценность | H182: Витамины | M182: Минеральные вещества
D183: Белки | E183: Жиры | F183: Углеводы | H183: B1 | I183: B2 | J183: A | K183: D | L183: C | M183: Na | N183: K | O183: Ca | P183: Mg | Q183: P | R183: Fe | S183: I | T183: Se | U183: F
C184: г | D184: г | E184: г | F184: г | G184: ккал | H184: мг | I184: мг | J184: мкг рет.экв | K184: мкг | L184: мг | M184: мг | N184: мг | O184: мг | P184: мг | Q184: мг | R184: мг | S184: мкг | T184: мкг | U184: мкг
B185: Завтрак
A186: 53-19з-2020 | B186: Масло сливочное (порциями) | C186: 10 | D186: 0.08 | E186: 7.25 | F186: 0.13 | G186: 66.1 | H186: 0 | I186: 0.01 | J186: 27 | K186: 0.13 | L186: 0 | M186: 1.14 | N186: 2.49 | O186: 2.11 | P186: 0 | Q186: 2.61 | R186: 0.02 | S186: 0 | T186: 0.1 | U186: 0.3
A187: 54-22к-2020 | B187: Каша жидкая молочная овсяная | C187: 150 | D187: 5.1 | E187: 5.6 | F187: 18.5 | G187: 144.5 | H187: 0.11 | I187: 0.13 | J187: 21.81 | K187: 0.05 | L187: 0.46 | M187: 260.87 | N187: 177.7 | O187: 123.12 | P187: 34.24 | Q187: 140.9 | R187: 0.89 | S187: 39 | T187: 7.47 | U187: 37.21
A188: 54-4гн-2020 | B188: Чай с молоком и сахаром | C188: 200 | D188: 1.6 | E188: 1.1 | F188: 8.6 | G188: 50.9 | H188: 0.01 | I188: 0.07 | J188: 6.9 | K188: 0 | L188: 0.3 | M188: 19.68 | N188: 81.35 | O188: 103.48 | P188: 9.92 | Q188: 46.33 | R188: 0.78 | S188: 4.5 | T188: 0.88 | U188: 10
A189: Пром. | B189: Хлеб пшеничный | C189: 30 | D189: 2.3 | E189: 0.2 | F189: 14.8 | G189: 70.3 | H189: 0.03 | I189: 0.01 | J189: 0 | K189: 0 | L189: 0 | M189: 149.7 | N189: 27.9 | O189: 6 | P189: 4.2 | Q189: 19.5 | R189: 0.33 | S189: 0.96 | T189: 1.8 | U189: 4.35
A190: Пром. | B190: Банан | C190: 100 | D190: 1.5 | E190: 0 | F190: 22.4 | G190: 95.6 | H190: 0.04 | I190: 0.05 | J190: 20 | K190: 0 | L190: 10 | M190: 31 | N190: 348 | O190: 8 | P190: 42 | Q190: 28 | R190: 0.6 | S190: 0.05 | T190: 1 | U190: 2.2
A191: 54-6о-2020 | B191: Яйцо вареное 1 шт | C191: 40 | D191: 4.78 | E191: 4.05 | F191: 0.25 | G191: 56.6 | H191: 0.02 | I191: 0.14 | J191: 62.4 | K191: 0.88 | L191: 0 | M191: 40.74 | N191: 46.48 | O191: 19.36 | P191: 4.18 | Q191: 66.82 | R191: 0.87 | S191: 8 | T191: 10.8 | U191: 22
B192: Итого за Завтрак | C192: =C186+C187+C188+C189+C190+C191 -> 530 | D192: =D186+D187+D188+D189+D190+D191 -> 15.36 | E192: 18.2 | F192: 64.68 | G192: 484 | H192: 0.21 | I192: 0.41 | J192: 138.11 | K192: 1.06 | L192: 10.76 | M192: 503.13 | N192: 683.92 | O192: 262.07 | P192: 94.54 | Q192: 304.16 | R192: 3.49 | S192: 52.51 | T192: 22.05 | U192: 76.06
B193: Обед
A194: ном.рец №40 | B194: Салат картофельный с морковью, зеленым горошком и растительным маслом | C194: 60 | D194: 1.6 | E194: 4.3 | F194: 5.9 | G194: 68.7 | H194: 0 | I194: 0 | J194: 0.4 | K194: 0 | L194: 3.9 | M194: 0 | N194: 0 | O194: 14.8 | P194: 13.9 | Q194: 37 | R194: 0.7 | S194: 0 | T194: 0 | U194: 0
A195: 54-1с-2020 | B195: Щи из свежей капусты со сметаной | C195: 200 | D195: 4.7 | E195: 5.6 | F195: 5.7 | G195: 92.2 | H195: 0.02 | I195: 0.03 | J195: 104.95 | K195: 0 | L195: 10.76 | M195: 98.52 | N195: 184 | O195: 37.48 | P195: 13.13 | Q195: 30.97 | R195: 0.48 | S195: 15.25 | T195: 0.34 | U195: 14.76
A196: 54-4г-2020 | B196: Каша гречневая рассыпчатая | C196: 150 | D196: 8.2 | E196: 6.3 | F196: 35.9 | G196: 233.7 | H196: 0.21 | I196: 0.12 | J196: 19.19 | K196: 0.09 | L196: 0 | M196: 149.45 | N196: 219.36 | O196: 46.62 | P196: 120.16 | Q196: 180.99 | R196: 4.05 | S196: 22.28 | T196: 3.52 | U196: 16.06
A197: ном.рец №608 | B197: Котлета мясная Любительская, полуфабрикат в соусе | C197: 65/35 | D197: 10.04 | E197: 12.79 | F197: 8.12 | G197: 187.9 | H197: 0 | I197: 0 | J197: 38.45 | K197: 0.01 | L197: 1.15 | M197: 3 | N197: 43 | O197: 45.75 | P197: 35.13 | Q197: 173.38 | R197: 1.6 | S197: 0 | T197: 0 | U197: 0
A198: 54-2гн-2020 | B198: Чай с сахаром | C198: 200 | D198: 0.2 | E198: 0 | F198: 6.4 | G198: 26.8 | H198: 0 | I198: 0.01 | J198: 0.3 | K198: 0 | L198: 0.04 | M198: 0.68 | N198: 20.76 | O198: 66.08 | P198: 3.83 | Q198: 7.18 | R198: 0.73 | S198: 0 | T198: 0 | U198: 0
A199: Пром. | B199: Хлеб пшеничный | C199: 30 | D199: 2.3 | E199: 0.2 | F199: 14.8 | G199: 70.3 | H199: 0.03 | I199: 0.01 | J199: 0 | K199: 0 | L199: 0 | M199: 149.7 | N199: 27.9 | O199: 6 | P199: 4.2 | Q199: 19.5 | R199: 0.33 | S199: 0.96 | T199: 1.8 | U199: 4.35
B200: Итого за Обед | C200: 740 | D200: =D194+D195+D196+D197+D198+D199 -> 27.04 | E200: =E194+E195+E196+E197+E198+E199 -> 29.19 | F200: 76.82 | G200: 679.6 | H200: 0.26 | I200: 0.17 | J200: 163.29 | K200: 0.1 | L200: 15.85 | M200: 401.35 | N200: 495.02 | O200: 216.73 | P200: 190.35 | Q200: 449.02 | R200: 7.89 | S200: 38.49 | T200: 5.66 | U200: 35.17
B201: Полдник
A202: Пром. | B202: Сок яблочный | C202: 200 | D202: 1 | E202: 0.2 | F202: 20.2 | G202: 86.6 | H202: 0.02 | I202: 0.02 | J202: 0 | K202: 0 | L202: 4 | M202: 12 | N202: 240 | O202: 14 | P202: 8 | Q202: 14 | R202: 2.8 | S202: 0 | T202: 0 | U202: 0
A203: Пром. | B203: Сушка простая | C203: 30 | D203: 3.27 | E203: 0.39 | F203: 20.64 | G203: 99.1 | H203: 0.05 | I203: 0.02 | J203: 0 | K203: 0 | L203: 0 | M203: 137.94 | N203: 46.06 | O203: 7.92 | P203: 12.01 | Q203: 31.58 | R203: 0.76 | S203: 0 | T203: 0 | U203: 0
B204: Итого за Полдник | C204: =C202+C203 -> 230 | D204: =D202+D203 -> 4.27 | E204: 0.59 | F204: 40.84 | G204: 185.7 | H204: 0.07 | I204: 0.04 | J204: 0 | K204: 0 | L204: 4 | M204: 149.94 | N204: 286.06 | O204: 21.92 | P204: 20.01 | Q204: 45.58 | R204: 3.56 | S204: 0 | T204: 0 | U204: 0
B205: Ужин
A206: 54-6г-2020 | B206: Рис отварной | C206: 150 | D206: 5.3 | E206: 4.9 | F206: 32.8 | G206: 196.8 | H206: 0.06 | I206: 0.02 | J206: 18.36 | K206: 0.09 | L206: 0 | M206: 149.04 | N206: 53.8 | O206: 105.83 | P206: 7.19 | Q206: 40.7 | R206: 0.73 | S206: 20.77 | T206: 0.06 | U206: 11.92
A207: 54-25м-2020 | B207: Курица тушеная с морковью | C207: 40/60 | D207: 14.12 | E207: 5.78 | F207: 4.46 | G207: 126.4 | H207: 0.04 | I207: 0.05 | J207: 286.31 | K207: 0.02 | L207: 0 | M207: 249 | N207: 209 | O207: 33 | P207: 55 | Q207: 112 | R207: 0.9 | S207: 35.07 | T207: 12 | U207: 94.93
... 155 more rows
